[Event "*** SCC Grand Prix: Titled Tuesday Blitz"]
[Site "Chess.com"]
[Date "2020.10.13"]
[Round "1"]
[White "korkmaz16"]
[Black "swimmerchess"]
[Result "0-1"]
[WhiteElo "2404"]
[BlackElo "2775"]
[TimeControl "180+1"]
[EndTime "10:06:29 PDT"]
[Termination "swimmerchess won on time"]

1. e4 {[%clk 0:03:00.2]} 1... c5 {[%clk 0:02:59.7]} 2. Nc3 {[%clk 0:02:56.5]}
2... a6 {[%clk 0:02:59.6]} 3. f4 {[%clk 0:02:56.4]} 3... b5 {[%clk 0:02:59.4]}
4. Nf3 {[%clk 0:02:55.7]} 4... Bb7 {[%clk 0:02:59.9]} 5. d3 {[%clk 0:02:55.8]}
5... e6 {[%clk 0:03:00.1]} 6. g3 {[%clk 0:02:56]} 6... Nf6 {[%clk 0:02:59.2]} 7.
Bg2 {[%clk 0:02:55.8]} 7... b4 {[%clk 0:02:59.8]} 8. Ne2 {[%clk 0:02:55]} 8...
d5 {[%clk 0:03:00.3]} 9. e5 {[%clk 0:02:54.5]} 9... Nfd7 {[%clk 0:03:00.7]} 10.
d4 {[%clk 0:02:53.4]} 10... Nc6 {[%clk 0:03:00.7]} 11. Be3 {[%clk 0:02:52.9]}
11... a5 {[%clk 0:02:59.9]} 12. O-O {[%clk 0:02:51]} 12... a4 {[%clk 0:02:57.1]}
13. c3 {[%clk 0:02:37.6]} 13... a3 {[%clk 0:02:55.8]} 14. b3 {[%clk 0:02:37.4]}
14... Qb6 {[%clk 0:02:52]} 15. Rc1 {[%clk 0:02:32.9]} 15... Ba6 {[%clk
0:02:43.2]} 16. c4 {[%clk 0:02:02]} 16... dxc4 {[%clk 0:01:45.9]} 17. d5 {[%clk
0:01:57.7]} 17... exd5 {[%clk 0:01:46.8]} 18. Qxd5 {[%clk 0:01:29.9]} 18... Rd8
{[%clk 0:01:47.2]} 19. Ng5 {[%clk 0:01:22]} 19... Ndxe5 {[%clk 0:01:47]} 20. Qe4
{[%clk 0:01:21.7]} 20... f6 {[%clk 0:01:40.4]} 21. fxe5 {[%clk 0:01:18.6]} 21...
Nxe5 {[%clk 0:01:41.3]} 22. Nf3 {[%clk 0:01:10.3]} 22... Bb7 {[%clk 0:01:41.3]}
23. Qxb7 {[%clk 0:00:50.7]} 23... Qxb7 {[%clk 0:01:38.6]} 24. Nxe5 {[%clk
0:00:50.9]} 24... Qc7 {[%clk 0:01:22.5]} 25. Nxc4 {[%clk 0:00:32.6]} 25... Be7
{[%clk 0:01:17.9]} 26. Nf4 {[%clk 0:00:31]} 26... O-O {[%clk 0:01:16.5]} 27. Ne6
{[%clk 0:00:31.1]} 27... Qd7 {[%clk 0:01:16.7]} 28. Nxf8 {[%clk 0:00:31.1]}
28... Bxf8 {[%clk 0:01:16.7]} 29. Rfd1 {[%clk 0:00:28]} 29... Qxd1+ {[%clk
0:01:14.6]} 30. Rxd1 {[%clk 0:00:28.9]} 30... Rxd1+ {[%clk 0:01:14.9]} 31. Kf2
{[%clk 0:00:29]} 31... Ra1 {[%clk 0:01:15.8]} 32. Bd5+ {[%clk 0:00:29.1]} 32...
Kh8 {[%clk 0:01:15]} 33. h4 {[%clk 0:00:05.4]} 33... Rxa2+ {[%clk 0:01:13.9]}
34. Kf3 {[%clk 0:00:06]} 34... Rc2 {[%clk 0:01:11.1]} 35. Be4 {[%clk 0:00:03.4]}
35... Rxc4 {[%clk 0:01:11.1]} 36. bxc4 {[%clk 0:00:03.4]} 36... a2 {[%clk
0:01:11.3]} 37. Bd4 {[%clk 0:00:04.3]} 37... cxd4 {[%clk 0:01:11.6]} 38. Bb1
{[%clk 0:00:04]} 38... axb1=Q {[%clk 0:01:11.5]} 0-1

[Event "*** SCC Grand Prix: Titled Tuesday Blitz"]
[Site "Chess.com"]
[Date "2020.10.13"]
[Round "1"]
[White "youngKID"]
[Black "maxip32"]
[Result "1-0"]
[WhiteElo "2810"]
[BlackElo "2417"]
[TimeControl "180+1"]
[EndTime "10:06:32 PDT"]
[Termination "youngKID won by resignation"]

1. Nf3 {[%clk 0:02:59.1]} 1... Nf6 {[%clk 0:02:56]} 2. g3 {[%clk 0:02:59.4]}
2... g6 {[%clk 0:02:55.7]} 3. Bg2 {[%clk 0:02:59.3]} 3... Bg7 {[%clk 0:02:56.2]}
4. c4 {[%clk 0:02:59.2]} 4... O-O {[%clk 0:02:57.1]} 5. Nc3 {[%clk 0:02:58.3]}
5... d6 {[%clk 0:02:51.8]} 6. d4 {[%clk 0:02:57]} 6... Nbd7 {[%clk 0:02:51.3]}
7. O-O {[%clk 0:02:56.7]} 7... e5 {[%clk 0:02:51.4]} 8. e4 {[%clk 0:02:57.4]}
8... exd4 {[%clk 0:02:51.4]} 9. Nxd4 {[%clk 0:02:58.3]} 9... Nc5 {[%clk
0:02:51.6]} 10. h3 {[%clk 0:02:57.9]} 10... Re8 {[%clk 0:02:51.3]} 11. Re1
{[%clk 0:02:58.3]} 11... a5 {[%clk 0:02:51]} 12. Rb1 {[%clk 0:02:54.2]} 12...
Bd7 {[%clk 0:02:50.6]} 13. b3 {[%clk 0:02:53.8]} 13... Qc8 {[%clk 0:02:48.7]}
14. Kh2 {[%clk 0:02:53.2]} 14... h5 {[%clk 0:02:48.1]} 15. Bf4 {[%clk
0:02:34.1]} 15... Ne6 {[%clk 0:02:36.5]} 16. Nxe6 {[%clk 0:02:31.7]} 16... Bxe6
{[%clk 0:02:37.4]} 17. Qd2 {[%clk 0:02:28.7]} 17... Bd7 {[%clk 0:02:28.6]} 18.
Bh6 {[%clk 0:02:25.5]} 18... Bc6 {[%clk 0:02:23.6]} 19. Bxg7 {[%clk 0:02:24.4]}
19... Kxg7 {[%clk 0:02:24.5]} 20. Qd4 {[%clk 0:02:20.7]} 20... Qe6 {[%clk
0:02:18.3]} 21. f4 {[%clk 0:02:15.9]} 21... Kh7 {[%clk 0:01:59]} 22. Rbc1 {[%clk
0:02:14.4]} 22... Nd7 {[%clk 0:01:55.5]} 23. Nd5 {[%clk 0:02:10]} 23... Rac8
{[%clk 0:01:52.1]} 24. a3 {[%clk 0:02:08.6]} 24... h4 {[%clk 0:01:34.3]} 25. g4
{[%clk 0:01:56.1]} 25... g5 {[%clk 0:01:25.9]} 26. fxg5 {[%clk 0:01:56.1]} 26...
Bxd5 {[%clk 0:01:19]} 27. exd5 {[%clk 0:01:56.5]} 27... Qxe1 {[%clk 0:01:10.6]}
28. Rxe1 {[%clk 0:01:57.4]} 28... Rxe1 {[%clk 0:01:10.5]} 29. Qf2 {[%clk
0:01:58.1]} 29... Re7 {[%clk 0:01:09.1]} 30. Qxh4+ {[%clk 0:01:57.7]} 30... Kg8
{[%clk 0:01:07.6]} 31. g6 {[%clk 0:01:56.3]} 31... f6 {[%clk 0:01:03.3]} 32. g5
{[%clk 0:01:40.9]} 32... fxg5 {[%clk 0:00:57.1]} 33. Qxg5 {[%clk 0:01:41.8]}
33... Rce8 {[%clk 0:00:57.1]} 34. h4 {[%clk 0:01:40]} 34... Re5 {[%clk
0:00:49.8]} 35. Qh6 {[%clk 0:01:19.2]} 35... Nf6 {[%clk 0:00:49.1]} 36. Bh3
{[%clk 0:01:19.2]} 36... Re2+ {[%clk 0:00:45.9]} 37. Kg1 {[%clk 0:01:19.6]}
37... Re1+ {[%clk 0:00:45.4]} 38. Kf2 {[%clk 0:01:20]} 38... Rh1 {[%clk
0:00:17.7]} 39. Kg2 {[%clk 0:01:16.4]} 39... Rhe1 {[%clk 0:00:17]} 40. Be6+
{[%clk 0:01:16.5]} 40... R8xe6 {[%clk 0:00:16.5]} 41. dxe6 {[%clk 0:01:17.4]}
41... Re2+ {[%clk 0:00:17]} 42. Kf1 {[%clk 0:01:17.3]} 42... Rf2+ {[%clk
0:00:16.9]} 43. Kxf2 {[%clk 0:01:16]} 43... Ng4+ {[%clk 0:00:16.7]} 44. Ke1
{[%clk 0:01:16.6]} 44... Nxh6 {[%clk 0:00:17.6]} 45. e7 {[%clk 0:01:17.2]} 1-0

[Event "*** SCC Grand Prix: Titled Tuesday Blitz"]
[Site "Chess.com"]
[Date "2020.10.13"]
[Round "1"]
[White "picturesquecheck"]
[Black "Kavyev_Ruslan"]
[Result "0-1"]
[WhiteElo "2219"]
[BlackElo "2563"]
[TimeControl "180+1"]
[EndTime "10:06:32 PDT"]
[Termination "Kavyev_Ruslan won by resignation"]

1. e4 {[%clk 0:02:58.8]} 1... c5 {[%clk 0:02:59.9]} 2. Nf3 {[%clk 0:02:57.7]}
2... d6 {[%clk 0:03:00.5]} 3. d4 {[%clk 0:02:57.7]} 3... cxd4 {[%clk 0:03:01.4]}
4. Nxd4 {[%clk 0:02:58.5]} 4... Nf6 {[%clk 0:03:02.3]} 5. Nc3 {[%clk 0:02:58.6]}
5... a6 {[%clk 0:03:02.7]} 6. Be3 {[%clk 0:02:57.6]} 6... e5 {[%clk 0:03:02.7]}
7. Nb3 {[%clk 0:02:58.1]} 7... Be6 {[%clk 0:03:03.4]} 8. f3 {[%clk 0:02:57.6]}
8... h5 {[%clk 0:03:04]} 9. Qd2 {[%clk 0:02:58]} 9... Nbd7 {[%clk 0:03:04.5]}
10. Nd5 {[%clk 0:02:57.5]} 10... Bxd5 {[%clk 0:03:04.9]} 11. exd5 {[%clk
0:02:58.3]} 11... g6 {[%clk 0:03:05.8]} 12. O-O-O {[%clk 0:02:57.1]} 12... Nb6
{[%clk 0:03:05.8]} 13. Qa5 {[%clk 0:02:47.6]} 13... Bh6 {[%clk 0:02:53.7]} 14.
Bxh6 {[%clk 0:02:46.8]} 14... Rxh6 {[%clk 0:02:54]} 15. Kb1 {[%clk 0:02:47.2]}
15... Kf8 {[%clk 0:02:51.2]} 16. c4 {[%clk 0:02:44]} 16... Nbd7 {[%clk
0:02:45.1]} 17. Qd2 {[%clk 0:02:31.9]} 17... Kg7 {[%clk 0:02:43.2]} 18. Bd3
{[%clk 0:02:31.5]} 18... Rh8 {[%clk 0:02:41.8]} 19. h3 {[%clk 0:02:23.1]} 19...
h4 {[%clk 0:02:41.4]} 20. Rhe1 {[%clk 0:02:16]} 20... Nh5 {[%clk 0:02:41.2]} 21.
Bc2 {[%clk 0:02:05.9]} 21... Rc8 {[%clk 0:02:40.8]} 22. Bd3 {[%clk 0:01:47.4]}
22... Qf6 {[%clk 0:02:34.8]} 23. Rc1 {[%clk 0:01:43.9]} 23... b6 {[%clk
0:02:34.7]} 24. Qb4 {[%clk 0:01:37.8]} 24... Nf4 {[%clk 0:02:32.4]} 25. Bf1
{[%clk 0:01:32.2]} 25... Rc7 {[%clk 0:02:22.8]} 26. Ka1 {[%clk 0:01:26.4]} 26...
Rhc8 {[%clk 0:02:22.5]} 27. Nd2 {[%clk 0:01:26.3]} 27... Nxd5 {[%clk 0:02:21.1]}
28. Qa3 {[%clk 0:01:20.5]} 28... Qe7 {[%clk 0:01:45.3]} 29. Ne4 {[%clk
0:01:13.4]} 29... Nc5 {[%clk 0:01:33.6]} 30. cxd5 {[%clk 0:01:08.3]} 30... Nxe4
{[%clk 0:01:33.8]} 31. Rxc7 {[%clk 0:01:03.5]} 31... Qxc7 {[%clk 0:01:34.7]} 32.
Qe3 {[%clk 0:00:46.4]} 32... Nc5 {[%clk 0:01:28.7]} 33. Kb1 {[%clk 0:00:40.8]}
33... b5 {[%clk 0:01:26.7]} 34. Rc1 {[%clk 0:00:40.5]} 34... Qd8 {[%clk
0:01:23.8]} 35. b4 {[%clk 0:00:40]} 35... Na4 {[%clk 0:01:20.7]} 36. Bd3 {[%clk
0:00:39]} 36... Rxc1+ {[%clk 0:01:19.1]} 37. Qxc1 {[%clk 0:00:38.8]} 37... Qb6
{[%clk 0:01:18.7]} 38. Qd2 {[%clk 0:00:33]} 38... Qd4 {[%clk 0:01:18.5]} 39. f4
{[%clk 0:00:22.7]} 39... Nc3+ {[%clk 0:01:18.2]} 40. Kc2 {[%clk 0:00:21.5]}
40... Nxd5 {[%clk 0:01:18.6]} 41. fxe5 {[%clk 0:00:20.7]} 41... Nxb4+ {[%clk
0:01:19]} 42. Kb3 {[%clk 0:00:20.3]} 42... Qxd3+ {[%clk 0:01:19]} 43. Qxd3
{[%clk 0:00:20]} 43... Nxd3 {[%clk 0:01:19.9]} 44. exd6 {[%clk 0:00:20.5]} 44...
Kf6 {[%clk 0:01:20.5]} 45. Kc3 {[%clk 0:00:20.3]} 45... Ne5 {[%clk 0:01:20.3]}
46. Kd4 {[%clk 0:00:20.3]} 46... Ke6 {[%clk 0:01:20.8]} 47. d7 {[%clk
0:00:19.2]} 47... Nxd7 {[%clk 0:01:20.7]} 0-1

[Event "*** SCC Grand Prix: Titled Tuesday Blitz"]
[Site "Chess.com"]
[Date "2020.10.13"]
[Round "1"]
[White "IANOV0007"]
[Black "tigra"]
[Result "0-1"]
[WhiteElo "2445"]
[BlackElo "2844"]
[TimeControl "180+1"]
[EndTime "10:06:35 PDT"]
[Termination "tigra won by resignation"]

1. Nf3 {[%clk 0:03:00.5]} 1... d5 {[%clk 0:02:53.9]} 2. g3 {[%clk 0:03:00.1]}
2... Nf6 {[%clk 0:02:52.7]} 3. Bg2 {[%clk 0:02:59.9]} 3... Bf5 {[%clk
0:02:32.9]} 4. O-O {[%clk 0:02:58.4]} 4... e6 {[%clk 0:02:32]} 5. d3 {[%clk
0:02:58.4]} 5... h6 {[%clk 0:02:32.4]} 6. c4 {[%clk 0:02:58.1]} 6... Nbd7 {[%clk
0:02:33.3]} 7. Be3 {[%clk 0:02:53.1]} 7... c6 {[%clk 0:02:32.5]} 8. Qb3 {[%clk
0:02:51.6]} 8... Qb8 {[%clk 0:02:28.5]} 9. cxd5 {[%clk 0:02:49]} 9... exd5
{[%clk 0:02:29.4]} 10. Rc1 {[%clk 0:02:46.8]} 10... Bd6 {[%clk 0:02:29.5]} 11.
Nc3 {[%clk 0:02:46.2]} 11... O-O {[%clk 0:02:28.8]} 12. Na4 {[%clk 0:02:44.1]}
12... Bg4 {[%clk 0:02:27.5]} 13. Nc5 {[%clk 0:02:34.1]} 13... Nxc5 {[%clk
0:02:25.2]} 14. Bxc5 {[%clk 0:02:33.2]} 14... Bxc5 {[%clk 0:02:25.5]} 15. Rxc5
{[%clk 0:02:33.2]} 15... Re8 {[%clk 0:02:26.1]} 16. Rc2 {[%clk 0:02:32]} 16...
Qc7 {[%clk 0:02:24.3]} 17. Rac1 {[%clk 0:02:27.1]} 17... Qe7 {[%clk 0:02:22]}
18. a4 {[%clk 0:02:20.6]} 18... a5 {[%clk 0:02:19.6]} 19. Qb6 {[%clk 0:02:17.3]}
19... Ra6 {[%clk 0:02:19.2]} 20. Qd4 {[%clk 0:02:16.2]} 20... Bh5 {[%clk
0:02:17.8]} 21. h3 {[%clk 0:02:14.6]} 21... Nd7 {[%clk 0:02:16.4]} 22. e4 {[%clk
0:02:07.3]} 22... dxe4 {[%clk 0:02:14.8]} 23. dxe4 {[%clk 0:02:07.3]} 23... Rb6
{[%clk 0:02:13.8]} 24. Rd2 {[%clk 0:01:58]} 24... Bxf3 {[%clk 0:02:10.2]} 25.
Bxf3 {[%clk 0:01:57.3]} 25... Ne5 {[%clk 0:02:09.3]} 26. Bd1 {[%clk 0:01:46.6]}
26... Rb4 {[%clk 0:01:12.1]} 27. Qa7 {[%clk 0:01:42.6]} 27... Rxe4 {[%clk
0:01:10.9]} 28. Qxa5 {[%clk 0:01:40.7]} 28... Re1+ {[%clk 0:01:10.5]} 29. Kg2
{[%clk 0:01:39.2]} 29... Nf3 {[%clk 0:01:10.1]} 30. Bxf3 {[%clk 0:01:32.5]}
30... Rxc1 {[%clk 0:01:09.5]} 31. Re2 {[%clk 0:01:30.6]} 31... Qd7 {[%clk
0:01:07.1]} 32. Rxe8+ {[%clk 0:01:24.1]} 32... Qxe8 {[%clk 0:01:05.7]} 33. Qd2
{[%clk 0:01:14.3]} 33... Qe1 {[%clk 0:01:04.1]} 34. Qxe1 {[%clk 0:01:14]} 34...
Rxe1 {[%clk 0:01:03.5]} 35. a5 {[%clk 0:01:10.8]} 35... Rb1 {[%clk 0:01:03.1]}
36. a6 {[%clk 0:01:10.1]} 36... bxa6 {[%clk 0:01:03.2]} 37. Bxc6 {[%clk
0:01:10.1]} 37... Rxb2 {[%clk 0:01:03.3]} 38. Kf3 {[%clk 0:01:10.2]} 38... a5
{[%clk 0:01:04.2]} 39. Ke3 {[%clk 0:01:10.2]} 39... g6 {[%clk 0:01:00.5]} 40. h4
{[%clk 0:01:09.4]} 40... h5 {[%clk 0:00:58.6]} 41. f3 {[%clk 0:01:08.2]} 41...
Kg7 {[%clk 0:00:49.3]} 42. Bd7 {[%clk 0:00:59.1]} 42... Rb3+ {[%clk 0:00:46.6]}
43. Ke4 {[%clk 0:00:56.8]} 43... Ra3 {[%clk 0:00:47.5]} 44. g4 {[%clk
0:00:55.4]} 44... a4 {[%clk 0:00:48.4]} 45. gxh5 {[%clk 0:00:54.8]} 45... gxh5
{[%clk 0:00:48.8]} 46. Kf4 {[%clk 0:00:53.8]} 46... Ra1 {[%clk 0:00:47.7]} 47.
Ke3 {[%clk 0:00:52.8]} 47... a3 {[%clk 0:00:47.3]} 48. Kd2 {[%clk 0:00:52.7]}
48... a2 {[%clk 0:00:48]} 0-1

[Event "*** SCC Grand Prix: Titled Tuesday Blitz"]
[Site "Chess.com"]
[Date "2020.10.13"]
[Round "1"]
[White "ViditYT"]
[Black "NiranjanNavalgund"]
[Result "1-0"]
[WhiteElo "2843"]
[BlackElo "2442"]
[TimeControl "180+1"]
[EndTime "10:06:35 PDT"]
[Termination "ViditYT won by resignation"]

1. d4 {[%clk 0:03:00.1]} 1... Nf6 {[%clk 0:02:44.2]} 2. c4 {[%clk 0:02:58.7]}
2... e6 {[%clk 0:02:44.6]} 3. Nf3 {[%clk 0:02:58.2]} 3... d5 {[%clk 0:02:44]} 4.
Nc3 {[%clk 0:02:54.5]} 4... c5 {[%clk 0:02:35.8]} 5. cxd5 {[%clk 0:02:53.7]}
5... exd5 {[%clk 0:02:35.5]} 6. Bg5 {[%clk 0:02:49.5]} 6... Be6 {[%clk
0:02:34.5]} 7. e3 {[%clk 0:02:47.2]} 7... Nc6 {[%clk 0:02:31.8]} 8. dxc5 {[%clk
0:02:31.8]} 8... Bxc5 {[%clk 0:02:30.8]} 9. Be2 {[%clk 0:02:31.9]} 9... O-O
{[%clk 0:02:30.4]} 10. O-O {[%clk 0:02:31.6]} 10... Be7 {[%clk 0:02:07.1]} 11.
Rc1 {[%clk 0:02:30.5]} 11... Rc8 {[%clk 0:02:06.7]} 12. a3 {[%clk 0:02:27.7]}
12... h6 {[%clk 0:02:00.9]} 13. Bh4 {[%clk 0:02:25]} 13... Qa5 {[%clk
0:01:56.7]} 14. Nb5 {[%clk 0:02:12.9]} 14... Rfd8 {[%clk 0:01:47.2]} 15. Nbd4
{[%clk 0:02:00.3]} 15... Qb6 {[%clk 0:01:44.9]} 16. Nxe6 {[%clk 0:01:49.8]}
16... fxe6 {[%clk 0:01:44.7]} 17. b4 {[%clk 0:01:49.2]} 17... Ne4 {[%clk
0:01:38.1]} 18. Rxc6 {[%clk 0:01:18]} 18... Rxc6 {[%clk 0:01:36.1]} 19. Bxe7
{[%clk 0:01:17.9]} 19... Rdc8 {[%clk 0:01:32.6]} 20. Nd4 {[%clk 0:01:15.3]}
20... R6c7 {[%clk 0:01:10.1]} 21. Bh4 {[%clk 0:01:14.7]} 21... Nc3 {[%clk
0:00:50.9]} 22. Qd2 {[%clk 0:01:10.1]} 22... Nxe2+ {[%clk 0:00:47.2]} 23. Qxe2
{[%clk 0:01:09.2]} 23... e5 {[%clk 0:00:42.7]} 24. Nf3 {[%clk 0:00:55.5]} 24...
Qe6 {[%clk 0:00:38.4]} 25. Bg3 {[%clk 0:00:55]} 25... Rc2 {[%clk 0:00:36.7]} 26.
Qb5 {[%clk 0:00:54.7]} 26... Rc1 {[%clk 0:00:20.1]} 27. Bxe5 {[%clk 0:00:45.8]}
27... Rxf1+ {[%clk 0:00:19.9]} 28. Qxf1 {[%clk 0:00:44.3]} 28... Rc2 {[%clk
0:00:14.6]} 29. Nd4 {[%clk 0:00:43.5]} 29... Qxe5 {[%clk 0:00:13.2]} 30. Nxc2
{[%clk 0:00:43.6]} 30... Qb2 {[%clk 0:00:11.9]} 31. Qd1 {[%clk 0:00:43.6]} 31...
Kh8 {[%clk 0:00:11.2]} 32. g3 {[%clk 0:00:43.7]} 1-0

[Event "*** SCC Grand Prix: Titled Tuesday Blitz"]
[Site "Chess.com"]
[Date "2020.10.13"]
[Round "1"]
[White "Smirnov_Pavel"]
[Black "banane_verte"]
[Result "1-0"]
[WhiteElo "2828"]
[BlackElo "2430"]
[TimeControl "180+1"]
[EndTime "10:06:38 PDT"]
[Termination "Smirnov_Pavel won by checkmate"]

1. d4 {[%clk 0:03:00.9]} 1... Nf6 {[%clk 0:02:58.5]} 2. c4 {[%clk 0:03:01.3]}
2... e6 {[%clk 0:02:58.8]} 3. Nf3 {[%clk 0:03:01.8]} 3... b6 {[%clk 0:02:57.3]}
4. g3 {[%clk 0:03:00.9]} 4... Bb7 {[%clk 0:02:57.9]} 5. Bg2 {[%clk 0:03:00.4]}
5... Be7 {[%clk 0:02:58.5]} 6. O-O {[%clk 0:02:59.9]} 6... O-O {[%clk 0:02:59]}
7. Nc3 {[%clk 0:03:00.6]} 7... Ne4 {[%clk 0:02:59.4]} 8. Bd2 {[%clk 0:03:01.2]}
8... f5 {[%clk 0:02:58.1]} 9. Ne5 {[%clk 0:03:00.9]} 9... Nxc3 {[%clk
0:02:56.2]} 10. Bxc3 {[%clk 0:03:01.3]} 10... Bxg2 {[%clk 0:02:56.7]} 11. Kxg2
{[%clk 0:03:02.2]} 11... d6 {[%clk 0:02:55.7]} 12. Nf3 {[%clk 0:03:01.4]} 12...
Bf6 {[%clk 0:02:52.9]} 13. Qd3 {[%clk 0:03:00.8]} 13... Nd7 {[%clk 0:02:24.5]}
14. e4 {[%clk 0:02:59.1]} 14... g6 {[%clk 0:02:24.7]} 15. Rfe1 {[%clk
0:02:58.2]} 15... Qe7 {[%clk 0:02:17.1]} 16. Rad1 {[%clk 0:02:55]} 16... Rad8
{[%clk 0:02:16.2]} 17. b4 {[%clk 0:02:50.5]} 17... Rfe8 {[%clk 0:02:05.9]} 18.
a4 {[%clk 0:02:02.3]} 18... Qg7 {[%clk 0:02:05.1]} 19. b5 {[%clk 0:01:58.5]}
19... fxe4 {[%clk 0:02:00.2]} 20. Qxe4 {[%clk 0:01:59.4]} 20... e5 {[%clk
0:01:59.1]} 21. dxe5 {[%clk 0:01:35.9]} 21... Nxe5 {[%clk 0:01:56.4]} 22. Nxe5
{[%clk 0:01:35.7]} 22... Bxe5 {[%clk 0:01:48.6]} 23. Bxe5 {[%clk 0:01:35.3]}
23... Qxe5 {[%clk 0:01:21.8]} 24. Qc6 {[%clk 0:01:34.4]} 24... Qxe1 {[%clk
0:01:15.1]} 25. Rxe1 {[%clk 0:01:35.3]} 25... Rxe1 {[%clk 0:01:15.3]} 26. Qxc7
{[%clk 0:01:35.8]} 26... Ree8 {[%clk 0:01:04.6]} 27. Qxa7 {[%clk 0:01:34.9]}
27... Rb8 {[%clk 0:01:05.2]} 28. Qc7 {[%clk 0:01:33.3]} 28... Red8 {[%clk
0:01:04.7]} 29. h4 {[%clk 0:01:30.7]} 29... h5 {[%clk 0:01:01.2]} 30. Qe7 {[%clk
0:01:29.6]} 30... Rbc8 {[%clk 0:00:59.5]} 31. Qf6 {[%clk 0:01:22.1]} 31... Kh7
{[%clk 0:00:57.2]} 32. Qf7+ {[%clk 0:01:22]} 32... Kh6 {[%clk 0:00:57.8]} 33.
Qe7 {[%clk 0:01:03.5]} 33... Ra8 {[%clk 0:00:48]} 34. f3 {[%clk 0:00:59.7]}
34... Re8 {[%clk 0:00:41.9]} 35. Qxd6 {[%clk 0:00:56.3]} 35... Rxa4 {[%clk
0:00:37]} 36. Qxb6 {[%clk 0:00:53.6]} 36... Re2+ {[%clk 0:00:34.8]} 37. Kh3
{[%clk 0:00:48.9]} 37... Raa2 {[%clk 0:00:34.2]} 38. g4 {[%clk 0:00:49.3]} 38...
hxg4+ {[%clk 0:00:28.4]} 39. Kxg4 {[%clk 0:00:50.2]} 39... Rg2+ {[%clk
0:00:27.1]} 40. Kf4 {[%clk 0:00:49.8]} 40... Rh2 {[%clk 0:00:27.3]} 41. Qf6
{[%clk 0:00:48.9]} 41... Ra4 {[%clk 0:00:21.6]} 42. Qh8# {[%clk 0:00:47.6]} 1-0

[Event "*** SCC Grand Prix: Titled Tuesday Blitz"]
[Site "Chess.com"]
[Date "2020.10.13"]
[Round "1"]
[White "alexrustemov"]
[Black "Tenamu"]
[Result "1-0"]
[WhiteElo "2708"]
[BlackElo "2366"]
[TimeControl "180+1"]
[EndTime "10:06:38 PDT"]
[Termination "alexrustemov won by resignation"]

1. d4 {[%clk 0:03:00.7]} 1... Nf6 {[%clk 0:02:58.2]} 2. Nf3 {[%clk 0:03:00]}
2... e6 {[%clk 0:02:57.3]} 3. c4 {[%clk 0:03:00.3]} 3... c5 {[%clk 0:02:56.9]}
4. d5 {[%clk 0:02:59.6]} 4... exd5 {[%clk 0:02:57.8]} 5. cxd5 {[%clk 0:03:00.3]}
5... d6 {[%clk 0:02:58.3]} 6. Nc3 {[%clk 0:03:01]} 6... g6 {[%clk 0:02:58.1]} 7.
h3 {[%clk 0:03:00.4]} 7... Bg7 {[%clk 0:02:57.7]} 8. e4 {[%clk 0:03:00.8]} 8...
O-O {[%clk 0:02:57.7]} 9. Bd3 {[%clk 0:03:01.4]} 9... b5 {[%clk 0:02:58]} 10.
Bxb5 {[%clk 0:02:58.5]} 10... Nxe4 {[%clk 0:02:57.8]} 11. Nxe4 {[%clk
0:02:59.2]} 11... Qa5+ {[%clk 0:02:58]} 12. Nfd2 {[%clk 0:02:59.7]} 12... Qxb5
{[%clk 0:02:57.7]} 13. Nxd6 {[%clk 0:02:59.9]} 13... Qa6 {[%clk 0:02:58.3]} 14.
N2c4 {[%clk 0:03:00.2]} 14... Nd7 {[%clk 0:02:58]} 15. O-O {[%clk 0:03:00.7]}
15... Ne5 {[%clk 0:02:55]} 16. Nxe5 {[%clk 0:02:37.8]} 16... Bxe5 {[%clk
0:02:55.9]} 17. Ne4 {[%clk 0:02:34.2]} 17... Rd8 {[%clk 0:02:48.4]} 18. Bg5
{[%clk 0:02:21.3]} 18... f6 {[%clk 0:02:47.6]} 19. Nxc5 {[%clk 0:02:21.5]} 19...
Qb5 {[%clk 0:02:42.3]} 20. Be3 {[%clk 0:02:20.1]} 20... Bf5 {[%clk 0:02:35.2]}
21. g4 {[%clk 0:02:10.2]} 21... Bc8 {[%clk 0:02:27]} 22. Rc1 {[%clk 0:02:00.8]}
22... Bb7 {[%clk 0:02:13.4]} 23. Nxb7 {[%clk 0:01:56]} 23... Qxb7 {[%clk
0:02:14.3]} 24. Rc2 {[%clk 0:01:41.1]} 24... Rxd5 {[%clk 0:02:08.6]} 25. Qf3
{[%clk 0:01:40.3]} 25... Qd7 {[%clk 0:02:07.3]} 26. Rfc1 {[%clk 0:01:37.4]}
26... Rd8 {[%clk 0:02:03.4]} 27. Kg2 {[%clk 0:01:34.9]} 27... f5 {[%clk
0:01:53.7]} 28. gxf5 {[%clk 0:01:33.8]} 28... gxf5 {[%clk 0:01:54.6]} 29. Rc8
{[%clk 0:01:24.6]} 29... Bb8 {[%clk 0:01:36.8]} 30. Rxd8+ {[%clk 0:01:21.9]}
30... Qxd8 {[%clk 0:01:37.7]} 31. Rc8 {[%clk 0:01:20.8]} 31... Qxc8 {[%clk
0:01:35.9]} 32. Qxd5+ {[%clk 0:01:21.3]} 32... Kg7 {[%clk 0:01:33.4]} 33. Bd4+
{[%clk 0:01:21.3]} 33... Kg6 {[%clk 0:01:33.6]} 34. b4 {[%clk 0:01:16.3]} 34...
a6 {[%clk 0:01:27.8]} 35. a4 {[%clk 0:01:15.8]} 35... f4 {[%clk 0:01:15.4]} 36.
b5 {[%clk 0:01:12.4]} 36... axb5 {[%clk 0:01:14.9]} 37. axb5 {[%clk 0:01:13.1]}
37... f3+ {[%clk 0:01:05.7]} 38. Qxf3 {[%clk 0:01:12.9]} 38... Qc4 {[%clk
0:01:05.4]} 39. Qc6+ {[%clk 0:01:12.6]} 39... Qxc6+ {[%clk 0:01:04.2]} 40. bxc6
{[%clk 0:01:13.5]} 40... Bc7 {[%clk 0:01:05.1]} 41. Kf3 {[%clk 0:01:09]} 41...
Kf5 {[%clk 0:01:05.3]} 42. Ke3 {[%clk 0:01:06.1]} 42... Ke6 {[%clk 0:01:00.5]}
43. Ke4 {[%clk 0:01:05.3]} 43... h5 {[%clk 0:00:59.7]} 44. Bc5 {[%clk
0:01:04.7]} 44... h4 {[%clk 0:00:57.2]} 45. f4 {[%clk 0:01:04.2]} 45... Kf6
{[%clk 0:00:57]} 46. f5 {[%clk 0:01:02.6]} 46... Kf7 {[%clk 0:00:55.4]} 47. Bd4
{[%clk 0:01:01.7]} 47... Ke7 {[%clk 0:00:55.2]} 48. Be5 {[%clk 0:01:01.8]} 48...
Bb6 {[%clk 0:00:54.4]} 49. Kd5 {[%clk 0:01:00.1]} 49... Kd8 {[%clk 0:00:53.3]}
50. Ke6 {[%clk 0:00:59.4]} 50... Bc5 {[%clk 0:00:52.2]} 51. f6 {[%clk
0:00:59.2]} 51... Ke8 {[%clk 0:00:50.9]} 52. Bd6 {[%clk 0:00:56.5]} 52... Bxd6
{[%clk 0:00:49.6]} 53. Kxd6 {[%clk 0:00:56.5]} 53... Kf7 {[%clk 0:00:50]} 54. c7
{[%clk 0:00:56.4]} 1-0